fUSD/lending_fUSD_20251220
["ID","MTS","AMOUNT","RATE_DAILY","PERIOD"]
[399239388,1766197849096,-500.5692733,0.000163,2]
[399239389,1766197849105,-168.09419939,0.000163,2]
[399239390,1766197849115,-500.0,0.000163,2]
[399239391,1766197849124,-555.87900727,0.000163,2]
[399239392,1766197849134,-500.0,0.000163,2]
[399239393,1766197849143,-500.0,0.000163,2]
[399239394,1766197849153,-500.59670517,0.000163,2]
[399239395,1766197849162,-500.0,0.000163,2]
[399239396,1766197849171,-500.0,0.000163,2]
[399239397,1766197849180,-162.24077786,0.000163,2]
[399239398,1766197849190,-590.13268338,0.000163,2]
[399239399,1766197849199,-500.0,0.000163,2]
[399239400,1766197849208,-452.09330567,0.000163,2]
[399239401,1766197849217,-500.0,0.000163,2]
[399239402,1766197849226,-500.0,0.000163,2]
[399239403,1766197849235,-500.0,0.000163,2]
[399239404,1766197849245,-330.6916765,0.000163,2]
[399239405,1766197849254,-334.5464899,0.000163,2]
[399239406,1766197849264,-500.48687625,0.000163,2]
[399239407,1766197849273,-500.34670783,0.000163,2]
[399239408,1766197849282,-500.0,0.000163,2]
[399239409,1766197849292,-500.0,0.000163,2]
[399239410,1766197849301,-500.29716194,0.000163,2]
[399239411,1766197849310,-500.0,0.000163,2]
[399239412,1766197849319,-500.0,0.000163,2]
[399239413,1766197849328,-500.19600128,0.000163,2]
[399239414,1766197849337,-500.0,0.000163,2]
[399239415,1766197849346,-500.0,0.000163,2]
[399239416,1766197849355,-177.2862913,0.000163,2]
[399239417,1766197849364,-500.0,0.000163,2]
[399239418,1766197849373,-500.0,0.000163,2]
[399239419,1766197849383,-426.51211002,0.000163,2]
[399239420,1766197849392,-161.07996631,0.000163,2]
[399239421,1766197849402,-500.0,0.000163,2]
[399239422,1766197849411,-500.0,0.000163,2]
[399239423,1766197849420,-516.37835686,0.000163,2]
[399239424,1766197849429,-500.0,0.000163,2]
[399239425,1766197849439,-500.45922425,0.000163,2]
[399239426,1766197849447,-543.08632529,0.000163,2]
[399239427,1766197849457,-220.27121476,0.000163,2]
[399239428,1766197849466,-518.77690272,0.000163,2]
[399239429,1766197849475,-500.0,0.000163,2]
[399239430,1766197849483,-500.0,0.000163,2]
[399239431,1766197849492,-500.0,0.000163,2]
[399239432,1766197849501,-500.44010865,0.000163,2]
[399239433,1766197849511,-500.5161197,0.000163,2]
[399239434,1766197849519,-500.0,0.000163,2]
[399239435,1766197849528,-500.0,0.000163,2]
[399239436,1766197849537,-500.0,0.000163,2]
[399239437,1766197849546,-500.0,0.000163,2]
[399239438,1766197849554,-500.34860131,0.000163,2]
[399239439,1766197849563,-500.30832876,0.000163,2]
[399239440,1766197849572,-500.0,0.000163,2]
[399239441,1766197849580,-166.91561833,0.000163,2]
[399239442,1766197849589,-500.0,0.000163,2]
[399239443,1766197849598,-523.00588269,0.000163,2]
[399239444,1766197849607,-500.0,0.000163,2]
[399239445,1766197849615,-500.36669311,0.000163,2]
[399239446,1766197849624,-500.0,0.000163,2]
[399239447,1766197849633,-500.0,0.000163,2]
[399239448,1766197849642,-500.0,0.000163,2]
[399239449,1766197849651,-577.20648211,0.000163,2]
[399239450,1766197849660,-529.96646376,0.000163,2]
[399239451,1766197849669,-344.64845159,0.000163,2]
[399239452,1766197849679,-500.0,0.000163,2]
[399239453,1766197849688,-500.0,0.000163,2]
[399239454,1766197849698,-168.56959317,0.000163,2]
[399239455,1766197849708,-500.0,0.000163,2]
[399239456,1766197849716,-740.43315878,0.00016302,2]
[399239457,1766197849725,-473.34451461,0.00016302,2]
[399239458,1766197849734,-537.0,0.00016302,2]
[399239459,1766197849744,-600.0,0.00016302,2]
[399239460,1766197849753,-569.0,0.00016302,2]
[399239461,1766197849763,-519.02968013,0.00016302,2]
[399239462,1766197849772,-150.0,0.00016307,2]
[399239463,1766197849784,-196.795206,0.00016338,2]
[399239464,1766197849794,-16599.58129145,0.00016343,2]
[399239465,1766197849803,-20020.38255838,0.00016343,2]
[399239466,1766197849812,-412.0,0.00016346,2]
[399239467,1766197849822,-412.0,0.00016355,2]
[399239468,1766197849831,-200.0,0.00016361,2]
[399239469,1766197849842,-200.0,0.00016361,2]
[399239470,1766197849853,-500.0,0.00016361,2]
[399239471,1766197849862,-1728.39,0.00016367,2]
[399239472,1766197849871,-247.0,0.00016398,2]
[399239473,1766197849880,-228.0,0.000164,2]
[399239474,1766197849889,-319.0,0.000164,2]
[399239475,1766197849898,-182.0,0.000164,2]
[399239476,1766197849907,-183.63284637,0.000164,2]
[399239477,1766197849916,-1000.0,0.000164,2]
[399239478,1766197849925,-536.0,0.00016401,2]
[399239479,1766197849934,-318.11736539,0.00016404,2]
[399239480,1766197849943,-500.0,0.00016415,2]
[399239481,1766197849951,-500.0,0.00016415,2]
[399239482,1766197849961,-500.0,0.00016415,2]
[399239483,1766197849972,-500.0,0.00016437,2]
[399239484,1766197849981,-500.0,0.00016437,2]
[399239485,1766197849991,-500.0,0.00016437,2]
[399239486,1766197850000,-500.0,0.00016438,2]
[399239487,1766197850009,-500.0,0.00016438,2]
[399239488,1766197850018,-500.0,0.00016438,2]
[399239489,1766197850027,-500.0,0.00016438,2]
[399239490,1766197850036,-500.0,0.00016438,2]
[399239491,1766197850046,-500.0,0.00016438,2]
[399239492,1766197850055,-500.0,0.00016438,2]
[399239493,1766197850064,-500.0,0.00016438,2]
[399239494,1766197850074,-500.0,0.00016438,2]
[399239495,1766197850083,-500.0,0.00016438,2]
[399239496,1766197850092,-500.0,0.00016438,2]
[399239497,1766197850101,-500.0,0.00016438,2]
[399239498,1766197850110,-500.0,0.00016438,2]
[399239499,1766197850119,-500.0,0.00016438,2]
[399239500,1766197850129,-500.0,0.00016438,2]
[399239501,1766197850138,-500.0,0.00016438,2]
[399239502,1766197850147,-500.0,0.00016438,2]
[399239503,1766197850157,-500.0,0.00016438,2]
[399239504,1766197850166,-500.0,0.00016438,2]
[399239505,1766197850176,-500.0,0.00016438,2]
[399239506,1766197850186,-500.0,0.00016438,2]
[399239507,1766197850195,-500.0,0.00016438,2]
[399239508,1766197850204,-500.0,0.00016438,2]
[399239509,1766197850214,-500.0,0.00016438,2]
[399239510,1766197850223,-500.0,0.00016438,2]
[399239511,1766197850232,-500.0,0.00016438,2]
[399239512,1766197850242,-500.0,0.00016438,2]
[399239513,1766197850252,-500.0,0.00016438,2]
[399239514,1766197850261,-500.0,0.00016438,2]
[399239515,1766197850271,-500.0,0.00016438,2]
[399239516,1766197850280,-500.0,0.00016438,2]
[399239517,1766197850290,-500.0,0.00016438,2]
[399239518,1766197850299,-447.22818458,0.00016438,2]
[399239519,1766197850309,-500.0,0.00016438,2]
[399239520,1766197850318,-500.0,0.00016438,2]
[399239521,1766197850327,-500.0,0.00016438,2]
[399239522,1766197850337,-500.0,0.00016438,2]
[399239523,1766197850346,-500.0,0.00016438,2]
[399239524,1766197850355,-500.0,0.00016438,2]
[399239525,1766197850364,-500.0,0.00016438,2]
[399239526,1766197850373,-500.0,0.00016438,2]
[399239527,1766197850381,-500.0,0.00016438,2]
[399239528,1766197850390,-500.0,0.00016438,2]
[399239529,1766197850400,-500.0,0.00016438,2]
[399239530,1766197850409,-500.0,0.00016438,2]
[399239531,1766197850418,-500.0,0.00016438,2]
[399239532,1766197850427,-500.0,0.00016438,2]
[399239533,1766197850437,-500.0,0.00016438,2]
[399239534,1766197850446,-524.64346379,0.00016438,2]
[399239535,1766197850455,-524.64346379,0.00016438,2]
[399239536,1766197850464,-524.64346379,0.00016438,2]
[399239537,1766197850474,-524.64346379,0.00016438,2]
[399239538,1766197850483,-524.64346379,0.00016438,2]
[399239539,1766197850492,-524.64346379,0.00016438,2]
[399239540,1766197850501,-524.64346379,0.00016438,2]
[399239541,1766197850510,-524.64346379,0.00016438,2]
[399239542,1766197850519,-524.64346379,0.00016438,2]
[399239543,1766197850528,-524.64346379,0.00016438,2]
[399239544,1766197850537,-524.64346379,0.00016438,2]
[399239545,1766197850546,-524.64346379,0.00016438,2]
[399239546,1766197850555,-524.64346379,0.00016438,2]
[399239547,1766197850564,-524.64346379,0.00016438,2]
[399239548,1766197850574,-524.64346379,0.00016438,2]
[399239549,1766197850584,-524.64346379,0.00016438,2]
[399239550,1766197850593,-524.64346379,0.00016438,2]
[399239551,1766197850602,-524.64346379,0.00016438,2]
[399239552,1766197850612,-524.64346379,0.00016438,2]
[399239553,1766197850621,-524.64346379,0.00016438,2]
[399239554,1766197850631,-524.64346379,0.00016438,2]
[399239555,1766197850640,-524.64346379,0.00016438,2]
[399239556,1766197850649,-524.64346379,0.00016438,2]
[399239557,1766197850658,-524.64346379,0.00016438,2]
[399239558,1766197850667,-524.64346379,0.00016438,2]
[399239559,1766197850676,-524.64346379,0.00016438,2]
[399239560,1766197850685,-524.64346379,0.00016438,2]
[399239561,1766197850695,-524.64346379,0.00016438,2]
[399239562,1766197850704,-524.64346379,0.00016438,2]
[399239563,1766197850713,-524.64346379,0.00016438,2]
[399239564,1766197850722,-524.64346379,0.00016438,2]
[399239565,1766197850731,-524.64346379,0.00016438,2]
[399239566,1766197850740,-524.64346379,0.00016438,2]
[399239567,1766197850750,-524.64346379,0.00016438,2]
[399239568,1766197850759,-524.64346379,0.00016438,2]
[399239569,1766197850769,-524.64346379,0.00016438,2]
[399239570,1766197850782,-524.64346379,0.00016438,2]
[399239571,1766197850791,-524.64346379,0.00016438,2]
[399239572,1766197850902,-524.64346379,0.00016438,2]
[399239573,1766197850912,-524.64346379,0.00016438,2]
[399239574,1766197850922,-524.64346379,0.00016438,2]
[399239575,1766197850932,-524.64346388,0.00016438,2]
[399239576,1766197850941,-500.0,0.00016438,2]
[399239577,1766197850951,-500.0,0.00016438,2]
[399239578,1766197850961,-500.0,0.00016438,2]
[399239579,1766197850972,-500.0,0.00016438,2]
[399239580,1766197850981,-500.0,0.00016438,2]
[399239581,1766197850990,-225.86,0.00016438,2]
[399239582,1766197851000,-3000.71,0.00016438,2]
[399239583,1766197851011,-900.0,0.00016438,2]
[399239584,1766197851020,-800.62641417,0.00016438,2]
[399239585,1766197851030,-164.43,0.0001644,2]
[399239586,1766197851039,-164.43,0.0001644,2]
[399239587,1766197851049,-158.99,0.00016461,2]
[399239588,1766197851059,-152.47844731,0.00016475,2]
[399239589,1766197851068,-617.40005154,0.00016475,2]
[399239590,1766197851078,-301.37247362,0.00016475,2]
[399239591,1766197851088,-338.28459543,0.00016501,2]
[399239592,1766197851099,-3109.34995974,0.00016512,2]
[399239593,1766197851109,-3000.0,0.00016512,2]
[399239594,1766197851121,-153.83,0.00016563,2]
[399239595,1766197851130,-318.11736539,0.00016569,2]
[399239596,1766197851141,-210.83581763,0.00016574,2]
[399239597,1766197851150,-179.99447553,0.00016574,2]
[399239598,1766197851160,-536.0,0.00016591,2]
[399239599,1766197851169,-358.62936828,0.000166,2]
[399239600,1766197851179,-1000.0,0.000166,2]
[399239601,1766197851189,-1728.39,0.00016641,2]
[399239602,1766197851198,-150.0,0.00016647,2]
[399239603,1766197851208,-500.0,0.00016659,2]
[399239604,1766197851218,-500.0,0.00016659,2]
[399239605,1766197851227,-500.0,0.00016659,2]
[399239606,1766197851237,-500.0,0.00016659,2]
[399239607,1766197851248,-500.0,0.00016659,2]
[399239608,1766197851257,-500.0,0.00016659,2]
[399239609,1766197851267,-500.0,0.00016659,2]
[399239610,1766197851278,-500.0,0.00016659,2]
[399239611,1766197851288,-500.0,0.00016659,2]
[399239612,1766197851297,-322.99177949,0.00016659,2]
[399239613,1766197851307,-500.0,0.00016659,2]
[399239614,1766197851316,-500.0,0.00016659,2]
[399239615,1766197851326,-500.0,0.00016659,2]
[399239616,1766197851336,-500.0,0.00016659,2]
[399239617,1766197851346,-500.0,0.00016659,2]
[399239618,1766197851356,-500.0,0.00016659,2]
[399239619,1766197851366,-500.0,0.00016659,2]
[399239620,1766197851375,-500.0,0.00016659,2]
[399239621,1766197851385,-500.0,0.00016659,2]
[399239622,1766197851395,-500.0,0.00016659,2]
[399239623,1766197851404,-500.0,0.00016659,2]
[399239624,1766197851414,-454.0,0.0001666,2]
[399239625,1766197851423,-12375.00024842,0.0001666,2]
[399239626,1766197851433,-412.0,0.00016662,2]
[399239627,1766197851442,-536.0,0.00016669,2]
[399239628,1766197851451,-359.0,0.00016697,2]
[399239629,1766197851460,-167.79,0.00016712,2]
[399239630,1766197851469,-536.0,0.00016719,2]
[399239631,1766197851479,-500.0,0.00016725,2]
[399239632,1766197851488,-318.11736539,0.00016735,2]
[399239633,1766197851498,-151.0,0.00016748,2]
[399239634,1766197851507,-311.1,0.00016748,2]
[399239635,1766197851516,-500.0,0.00016767,2]
[399239636,1766197851526,-536.0,0.00016792,2]
[399239637,1766197851535,-536.0,0.00016798,2]
[399239638,1766197851544,-1000.0,0.000168,2]
[399239639,1766197851554,-536.0,0.00016808,2]
[399239640,1766197851563,-1000.0,0.00016848,2]
[399239641,1766197851572,-1000.76703223,0.00016848,2]
[399239642,1766197851582,-1000.0,0.00016848,2]
[399239643,1766197851592,-1000.0,0.00016848,2]
[399239644,1766197851601,-1001.04078122,0.00016848,2]
[399239645,1766197851610,-221.90485079,0.00016848,2]
[399239646,1766197851620,-1001.31913615,0.00016848,2]
[399239647,1766197851629,-1001.0881382,0.00016848,2]
[399239648,1766197851639,-1001.04801864,0.00016848,2]
[399239649,1766197851648,-1001.0574546,0.00016848,2]
[399239650,1766197851657,-179.47316237,0.00016848,2]
[399239651,1766197851667,-1000.0,0.00016848,2]
[399239652,1766197851676,-1001.39291005,0.00016848,2]
[399239653,1766197851685,-500.65137842,0.00016848,2]
[399239654,1766197851695,-1000.87754816,0.00016848,2]
[399239655,1766197851704,-1000.0,0.00016848,2]
[399239656,1766197851714,-1000.91698308,0.00016848,2]
[399239657,1766197851723,-1001.13256122,0.00016848,2]
[399239658,1766197851733,-1001.19540644,0.00016848,2]
[399239659,1766197851743,-1001.94292641,0.00016848,2]
[399239660,1766197851752,-1000.87355102,0.00016848,2]
[399239661,1766197851762,-1000.866265,0.00016848,2]
[399239662,1766197851772,-501.13881872,0.00016848,2]
[399239663,1766197851784,-1000.96314567,0.00016848,2]
[399239664,1766197851793,-1002.26047729,0.00016848,2]
[399239665,1766197851803,-1001.02020729,0.00016848,2]
[399239666,1766197851812,-1001.01249642,0.00016848,2]
[399239667,1766197851821,-501.11789279,0.00016848,2]
[399239668,1766197851831,-1001.62933113,0.00016848,2]
[399239669,1766197851840,-1001.55316658,0.00016848,2]
[399239670,1766197851850,-1001.82577211,0.00016848,2]
[399239671,1766197851859,-500.58632088,0.00016848,2]
[399239672,1766197851869,-1000.9465121,0.00016848,2]
[399239673,1766197851878,-998.88830841,0.00016848,2]
[399239674,1766197851888,-1000.0,0.00016848,2]
[399239675,1766197851898,-1001.1215833,0.00016848,2]
[399239676,1766197851908,-1000.0,0.00016848,2]
[399239677,1766197851917,-1000.0,0.00016848,2]
[399239678,1766197851926,-1004.81720167,0.00016848,2]
[399239679,1766197851936,-1000.0,0.00016848,2]
[399239680,1766197851945,-200.0,0.00016863,2]
[399239681,1766197851954,-200.0,0.00016864,2]
[399239682,1766197851964,-268.48828966,0.00016873,2]
[399239683,1766197851973,-25000.0,0.00016874,3]
[399239684,1766197851983,-25000.0,0.00016882,3]
[399239685,1766197851992,-268.48828964,0.00016887,2]
[399239686,1766197852001,-25000.0,0.00016891,3]
[399239687,1766197852011,-500.0,0.00016899,2]
[399239688,1766197852020,-500.0,0.00016899,2]
[399239689,1766197852029,-500.0,0.00016899,2]
[399239690,1766197852039,-500.0,0.00016899,2]
[399239691,1766197852049,-25000.0,0.000169,3]
[399239692,1766197852058,-16599.58129145,0.000169,2]
[399239693,1766197852068,-318.11736539,0.000169,2]
[399239694,1766197852077,-695.34142668,0.000169,3]
[399239695,1766197852087,-268.48828964,0.000169,2]
[399239696,1766197852097,-20020.38255838,0.000169,2]
[399239697,1766197852107,-338.28459543,0.000169,2]
[399239698,1766197852116,-1165.86642347,0.000169,2]
[399239699,1766197852126,-210.83581763,0.000169,2]
[399239700,1766197852135,-179.99447553,0.000169,2]
[399239701,1766197852145,-150.73308633,0.000169,2]
[399239702,1766197852155,-500.0,0.000169,2]
[399239703,1766197852164,-500.0,0.000169,2]
[399239704,1766197852174,-500.0,0.000169,2]
[399239705,1766197852184,-500.0,0.000169,2]
[399239706,1766197852193,-500.0,0.000169,2]
[399239707,1766197852203,-500.0,0.000169,2]
[399239708,1766197852213,-500.0,0.000169,2]
[399239709,1766197852222,-500.0,0.000169,2]
[399239710,1766197852231,-500.0,0.000169,2]
[399239711,1766197852241,-500.0,0.000169,2]
[399239712,1766197852250,-500.0,0.000169,2]
[399239713,1766197852260,-500.0,0.000169,2]
[399239714,1766197852269,-500.0,0.000169,2]
[399239715,1766197852278,-500.0,0.000169,2]
[399239716,1766197852288,-500.0,0.000169,2]
[399239717,1766197852298,-500.0,0.000169,2]
[399239718,1766197852308,-165.68557918,0.000169,2]
[399239719,1766197852318,-10251.0,0.000169,2]
[399239720,1766197852327,-200.0,0.00016909,2]
[399239721,1766197852336,-200.0,0.00016909,2]
[399239722,1766197852346,-500.0,0.00016909,2]
[399239723,1766197852355,-1728.39,0.00016915,2]
[399239724,1766197852364,-307.6,0.0001692,2]
[399239725,1766197852374,-1000.0,0.00016943,2]
[399239726,1766197852382,-500.0,0.0001697,2]
[399239727,1766197852392,-500.0,0.0001697,2]
[399239728,1766197852401,-500.0,0.0001697,2]
[399239729,1766197852410,-500.0,0.0001697,2]
[399239730,1766197852420,-500.0,0.0001697,2]
[399239731,1766197852429,-500.0,0.0001697,2]
[399239732,1766197852439,-500.0,0.0001697,2]
[399239733,1766197852448,-500.0,0.0001697,2]
[399239734,1766197852457,-500.0,0.0001697,2]
[399239735,1766197852467,-500.0,0.0001697,2]
[399239736,1766197852476,-500.0,0.0001697,2]
[399239737,1766197852485,-500.0,0.0001697,2]
[399239738,1766197852495,-500.0,0.0001697,2]
[399239739,1766197852504,-500.0,0.0001697,2]
[399239740,1766197852514,-500.0,0.0001697,2]
[399239741,1766197852524,-501.12856212,0.0001697,2]
[399239742,1766197852534,-500.0,0.0001697,2]
[399239743,1766197852544,-500.0,0.0001697,2]
[399239744,1766197852553,-500.0,0.0001697,2]
[399239745,1766197852563,-500.0,0.0001697,2]
[399239746,1766197852573,-500.0,0.0001697,2]
[399239747,1766197852583,-500.0,0.0001697,2]
[399239748,1766197852592,-500.0,0.0001697,2]
[399239749,1766197852601,-129840.5887914,0.00016971,2]
[399239750,1766197852611,-150.10981544,0.00016973,2]
[399239751,1766197852620,-150.09235231,0.00016973,2]
[399239752,1766197852630,-500.0,0.00016973,2]
[399239753,1766197852639,-150.0,0.00016973,2]
[399239754,1766197852649,-204.96960909,0.00016984,2]
[399239755,1766197852658,-500.0,0.00016986,2]
[399239756,1766197852667,-500.0,0.00016986,2]
[399239757,1766197852677,-151.0,0.00016986,2]
[399239758,1766197852686,-151.0,0.00016986,2]
[399239759,1766197852695,-151.0,0.00016986,2]
[399239760,1766197852705,-151.0,0.00016986,2]
[399239761,1766197852715,-180.627099,0.00016986,2]
[399239762,1766197852725,-180.627099,0.00016986,2]
[399239763,1766197852734,-180.627099,0.00016986,2]
[399239764,1766197852744,-180.627099,0.00016986,2]
[399239765,1766197852754,-227.386957,0.00016986,2]
[399239766,1766197852764,-227.386957,0.00016986,2]
[399239767,1766197852775,-227.386957,0.00016986,2]
[399239768,1766197852786,-227.386957,0.00016986,2]
[399239769,1766197852796,-151.0,0.00016986,2]
[399239770,1766197852805,-151.0,0.00016986,2]
[399239771,1766197852816,-151.0,0.00016986,2]
[399239772,1766197852825,-151.0,0.00016986,2]
[399239773,1766197852835,-500.0,0.00016986,2]
[399239774,1766197852846,-512.34192822,0.00016986,2]
[399239775,1766197852855,-151.0,0.00016986,2]
[399239776,1766197852864,-151.0,0.00016986,2]
[399239777,1766197852874,-151.0,0.00016986,2]
[399239778,1766197852883,-151.0,0.00016986,2]
[399239779,1766197852893,-176.111389,0.00016986,2]
[399239780,1766197852902,-183444.94,0.00016986,2]
[399239781,1766197852911,-164.76564826,0.00016986,2]
[399239782,1766197852920,-868.13960377,0.0001699,2]
[399239783,1766197852930,-293.6,0.00016994,2]
[399239784,1766197852939,-1500.0,0.00016998,2]
[399239785,1766197852948,-1500.0,0.00016998,2]
[399239786,1766197852958,-1527.47643038,0.00016998,2]
[399239787,1766197852968,-1019.77444314,0.00016999,5]
[399239788,1766197852977,-1019.77444314,0.00016999,5]
[399239789,1766197852986,-1019.77444314,0.00016999,5]
[399239790,1766197852995,-1019.77444314,0.00016999,5]
[399239791,1766197853005,-1019.77444314,0.00016999,5]
[399239792,1766197853014,-1019.77444313,0.00016999,5]
[399239793,1766197853291,-500.0,0.00016999,2]
[399239794,1766197853305,-500.0,0.00016999,2]
[399239795,1766197853314,-500.0,0.00016999,2]
[399239796,1766197853324,-500.0,0.00016999,2]
[399239797,1766197853334,-500.0,0.00016999,2]
[399239798,1766197853343,-500.0,0.00016999,2]
[399239799,1766197853352,-244.49443283,0.00016999,2]
[399239800,1766197853362,-500.0,0.00016999,2]
[399239801,1766197853371,-500.0,0.00016999,2]
[399239802,1766197853380,-500.0,0.00016999,2]
[399239803,1766197853390,-500.0,0.00016999,2]
[399239804,1766197853399,-500.0,0.00016999,2]
[399239805,1766197853409,-500.0,0.00016999,2]
[399239806,1766197853418,-500.0,0.00016999,2]
[399239807,1766197853427,-500.0,0.00016999,2]
[399239808,1766197853436,-500.0,0.00016999,2]
[399239809,1766197853445,-352.29799785,0.00016999,2]
[399239810,1766197853455,-500.0,0.00016999,2]
[399239811,1766197853465,-500.0,0.00016999,2]
[399239812,1766197853475,-500.0,0.00016999,2]
[399239813,1766197853485,-517.41741792,0.00016999,2]
[399239814,1766197853495,-500.0,0.00016999,2]
[399239815,1766197853504,-467.18251007,0.00016999,2]
[399239816,1766197853515,-500.0,0.00016999,2]
[399239817,1766197853525,-500.0,0.00016999,2]
[399239818,1766197853534,-500.0,0.00016999,2]
[399239819,1766197853544,-500.0,0.00016999,2]
[399239820,1766197853554,-500.0,0.00016999,2]
[399239821,1766197853563,-500.0,0.00016999,2]
[399239822,1766197853573,-500.0,0.00016999,2]
[399239823,1766197853582,-500.0,0.00016999,2]
[399239824,1766197853592,-500.0,0.00016999,2]
[399239825,1766197853601,-500.0,0.00016999,2]
[399239826,1766197853611,-500.0,0.00016999,2]
[399239827,1766197853620,-500.0,0.00016999,2]
[399239828,1766197853629,-511.45159126,0.00016999,2]
[399239829,1766197853639,-500.0,0.00016999,2]
[399239830,1766197853648,-500.0,0.00016999,2]
[399239831,1766197853658,-541.48637229,0.00016999,2]
[399239832,1766197853667,-500.0,0.00016999,2]
[399239833,1766197853676,-505.83670147,0.00016999,2]
[399239834,1766197853685,-500.0,0.00016999,2]
[399239835,1766197853695,-500.0,0.00016999,2]
[399239836,1766197853704,-500.0,0.00016999,2]
[399239837,1766197853714,-500.0,0.00016999,2]
[399239838,1766197853723,-500.0,0.00016999,2]
[399239839,1766197853732,-500.0,0.00016999,2]
[399239840,1766197853742,-500.0,0.00016999,2]
[399239841,1766197853751,-500.0,0.00016999,2]
[399239842,1766197853760,-500.0,0.00016999,2]
[399239843,1766197853770,-500.0,0.00016999,2]
[399239844,1766197853783,-500.0,0.00016999,2]
[399239845,1766197853793,-500.0,0.00016999,2]
[399239846,1766197853803,-500.0,0.00016999,2]
[399239847,1766197853813,-500.0,0.00016999,2]
[399239848,1766197853823,-500.0,0.00016999,2]
[399239849,1766197853833,-500.0,0.00016999,2]
[399239850,1766197853842,-500.0,0.00016999,2]
[399239851,1766197853851,-537.03290161,0.00016999,2]
[399239852,1766197853862,-500.0,0.00016999,2]
[399239853,1766197853872,-543.43338651,0.00016999,2]
[399239854,1766197853881,-500.0,0.00016999,2]
[399239855,1766197853890,-156.42387419,0.00016999,2]
[399239856,1766197853900,-500.0,0.00016999,2]
[399239857,1766197853910,-500.0,0.00016999,2]
[399239858,1766197853919,-500.0,0.00016999,2]
[399239859,1766197853928,-218.06651847,0.00016999,2]
[399239860,1766197853938,-500.0,0.00016999,2]
[399239861,1766197853948,-500.0,0.00016999,2]
[399239862,1766197853957,-500.0,0.00016999,2]
[399239863,1766197853966,-500.0,0.00016999,2]
[399239864,1766197853975,-500.0,0.00016999,2]
[399239865,1766197853985,-500.0,0.00016999,2]
[399239866,1766197853995,-260.01917159,0.00016999,2]
[399239867,1766197854004,-500.0,0.00016999,2]
[399239868,1766197854014,-500.0,0.00016999,2]
[399239869,1766197854023,-500.0,0.00016999,2]
[399239870,1766197854033,-500.0,0.00016999,2]
[399239871,1766197854042,-469.51043734,0.00016999,2]
[399239872,1766197854052,-214.74412357,0.00016999,2]
[399239873,1766197854062,-500.0,0.00016999,2]
[399239874,1766197854071,-500.0,0.00016999,2]
[399239875,1766197854082,-487.95660004,0.00016999,2]
[399239876,1766197854091,-500.0,0.00016999,2]
[399239877,1766197854102,-500.0,0.00016999,2]
[399239878,1766197854112,-500.0,0.00016999,2]
[399239879,1766197854121,-510.42805482,0.00016999,2]
[399239880,1766197854131,-500.0,0.00016999,2]
[399239881,1766197854140,-500.0,0.00016999,2]
[399239882,1766197854151,-500.0,0.00016999,2]
[399239883,1766197854160,-500.0,0.00016999,2]
[399239884,1766197854170,-510.77645617,0.00016999,2]
[399239885,1766197854180,-505.03580841,0.00016999,2]
[399239886,1766197854189,-500.0,0.00016999,2]
[399239887,1766197854199,-506.44561835,0.00016999,2]